Workbook

Sheet Unit_Price_Tab
D1: PREPARED BY:
A2: THE UNDERSIGNED CERTIFIES THAT (CONTRACTOR NAME)___________________________ IS CURRENTLY REGISTERED WITH THE VIRGINIA STATE BOARD OF CONTRACTORS AS REQUIRED BY THE CODE OF VIRGINIA. CERTIFICATE NUMBER _________________ WAS ISSUED ON THE ________DAY OF _____________, 20XX. THE UNDERSIGNED FURTHER CERTIFIES THAT THE REGISTRATION FEE AND ALL RENEWAL FEES REQUIRED UNDER LAW HAVE BEEN PAID. THE CONTRACTOR AGREES TO FURNISH ALL NECESSARY LABOR, EQUIPMENT, MATERIALS, AND ALL THINGS NECESSARY TO PERFORM THE WORK AS SET FORTH IN ACCORDANCE WITH THE PLANS AND SPECIFICATIONS. THE CONTRACTOR AGREES TO PERFORM RELATED WORK FOR THE FOLLOWING ITEMS AT THE FOLLOWING STIPULATED PRICES: (ALL PRICES INCLUDE PROVISION AND INSTALLATION).
A3: 21-DES-ITB-591 | D3: CHECKED BY:
A5: MASTER ITEM # | B5: DESCRIPTION | C5: QTY | D5: UNIT | E5: UNIT PRICE | F5: TOTAL
A6: C1 | B6: =VLOOKUP(A6,Table_BidItem_CategoryClassification[#All],2,FALSE) -> GENERAL EARTH WORK
A7: MASTER ITEM # | B7: DESCRIPTION | C7: QTY | D7: UNIT | E7: UNIT PRICE | F7: TOTAL
A8: 02200-C1-00130 | B8: Aggregate, VDOT #21-A (Compacted in Place per VDOT standards & Specs) | C8: =ROUNDUP(79399*0.5/27,-1) -> 1480 | D8: CY | F8: =IFERROR($C8*$E8, "") -> $0.00
A9: 01000-C1-SP121 | B9: WMATA Grate Cover (per plan detals) | C9: 3 | D9: EA | F9: =IFERROR($C9*$E9, "") -> $0.00
E10: SUBTOTAL | F10: =SUBTOTAL(109,Unit_Price_Tab!$F$8:$F$9) -> $0.00
A12: C2 | B12: =VLOOKUP(A12,Table_BidItem_CategoryClassification[#All],2,FALSE) -> CONCRETE WORK
A13: MASTER ITEM # | B13: DESCRIPTION | C13: QTY | D13: UNIT | E13: UNIT PRICE | F13: TOTAL
A14: 02750-C2-00020 | B14: Concrete Curb, Standard Header Curb C-3 (Arlington County Detail R-2.0), includes curb for aprons, ramps, etc. | C14: =ROUNDUP(233+259+494,-1) -> 990 | D14: LF | F14: =IFERROR($C14*$E14, "") -> $0.00
A15: 02750-C2-00060 | B15: Concrete Curb & Gutter, Standard C-2 and C-2R (Arlington County Detail R-2.0), includes curb & gutter for aprons, ramps, etc. | C15: =ROUNDUP(270+296+137+485+117+323+22,-1) -> 1650 | D15: LF | F15: $0.00
A16: 02611-C2-00110 | B16: Concrete Sidewalk, 4" Thickness (Arlington County Detail R-2.0) | C16: =ROUNDUP(8398/9,-1) -> 940 | D16: SY | F16: $0.00
A17: 02611-C2-00190 | B17: CG-12 Detectable Warning Surface - Truncated Domes | C17: =ROUNDUP(100/9,0) -> 12 | D17: SY | F17: $0.00
A18: 02611-C2-00170 | B18: Concrete Driveway Entrance, 6" Thick Residential (Arlington County Details R-2.4A, R-2.4B, R-2.4C, R-2.4D) | C18: =ROUNDUP(593/9,0) -> 66 | D18: SY | F18: $0.00
A19: 02611-C2-00180 | B19: Concrete Driveway Entrance, 9" Thick Commercial (Arlington County Details R-2.4A, R-2.4B, R-2.4C, R-2.4D) | C19: =ROUNDUP(1794/9,0) -> 200 | D19: SY | F19: $0.00
A20: 02611-C2-SP010 | B20: Median Strip (per Arlington County Detail R-1.4) | C20: =ROUNDUP(2288/9,0) -> 255 | D20: SY | F20: =IFERROR($C20*$E20, "") -> $0.00
E21: SUBTOTAL | F21: =SUBTOTAL(109,Unit_Price_Tab!$F$14:$F$20) -> $0.00
A23: C3 | B23: =VLOOKUP(A23,Table_BidItem_CategoryClassification[#All],2,FALSE) -> ASPHALT WORK
A24: MASTER ITEM # | B24: DESCRIPTION | C24: QTY | D24: UNIT | E24: UNIT PRICE | F24: TOTAL
A25: 02600-C3-00010 | B25: Asphalt Concrete, Planing or Milling (1/2" to 3" Depth) | C25: =ROUNDUP(14771/9,-1) -> 1650 | D25: SY | F25: =IFERROR($C25*$E25, "") -> $0.00
A26: 02600-C3-00030 | B26: Asphalt Concrete, Base Course (VDOT BM-25.0A) | C26: =ROUNDUP(79399*6/9*120/2000,0) -> 3176 | D26: TON | F26: $0.00
A27: 02600-C3-00060 | B27: Asphalt Concrete, Surface Course (VDOT SM-9.5A) | C27: =ROUNDUP(79399*2/9*120/2000,0) -> 1059 | D27: TON | F27: $0.00
E28: SUBTOTAL | F28: =SUBTOTAL(109,Unit_Price_Tab!$F$25:$F$27) -> $0.00
A30: C4 | B30: =VLOOKUP(A30,Table_BidItem_CategoryClassification[#All],2,FALSE) -> STORM SEWER UTILITY WORK
A31: MASTER ITEM # | B31: DESCRIPTION | C31: QTY | D31: UNIT | E31: UNIT PRICE | F31: TOTAL
A32: 02500-C4-00620 | B32: 15" Pipe, RCP Class III, In Place Up to 6' Deep | C32: =ROUNDUP(67.5+11.54,0) -> 80 | D32: LF | F32: =IFERROR($C32*$E32, "") -> $0.00
A33: 02505-C4-00630 | B33: 15" Pipe, RCP Class III, In Place 6' to 8' Deep | C33: =ROUNDUP(71.01,0) -> 72 | D33: LF | F33: $0.00
A34: 02500-C4-00820 | B34: 15" Pipe, RCP Class IV, In Place Up to 6' Deep | C34: =ROUNDUP(126.02,0) -> 127 | D34: LF | F34: $0.00
A35: 02505-C4-01440 | B35: Underdrain, Standard VDOT UD-4 | C35: =ROUNDUP(98+120+23+260,0) -> 501 | D35: LF | F35: =IFERROR($C35*$E35, "") -> $0.00
A36: 02505-C4-00010 | B36: Storm Manhole MH-1 (Arlington County Detail D-3.0), In Place, DEPTH 8' | C36: 3 | D36: EA | F36: $0.00
A37: 02505-C4-00080 | B37: CB-2 (Arlington County Standards), In Place Up to 6' Deep | C37: 7 | D37: EA | F37: $0.00
A38: 02505-C4-00180 | B38: Curb Drop Inlet, Standard VDOT DI-2B (12" to 24" Pipe), In Place Up to 9' Deep, Inlet Throat Length 4' to 20' | C38: 2 | D38: EA | F38: $0.00
A39: 02505-C4-00600 | B39: Storm Manhole, Catch Basin, Drop Inlet, Yard Inlet, or Grate Inlet, Remove | C39: 4 | D39: EA | F39: $0.00
A40: 02500-C4-00011 | B40: Storm Manhole MH-1 (Arlington County Detail D-3.0), In Place, PER ADDITIONAL VF OVER 8' | C40: =ROUNDUP(4+5+1,0) -> 10 | D40: VF | F40: =IFERROR($C40*$E40, "") -> $0.00
A41: 02505-C4-00090 | B41: CB-2 (Arlington County Standards), Each VF Over 6' Deep | C41: =ROUNDUP(6+7+7+5,0) -> 25 | D41: VF | F41: $0.00
A42: 02500-C4-SP010 | B42: 15" Pipe, RCP Class IV, In Place > 6' Deep | C42: =ROUNDUP(23.08+43.53+51.78+11.38+55.97+44.83,0) -> 231 | D42: LF | F42: =IFERROR($C42*$E42, "") -> $0.00
A43: 02500-C4-SP020 | B43: 18" Pipe, RCP Class IV, In Place > 6' Deep | C43: =ROUNDUP(84.19+19.54,0) -> 104 | D43: LF | F43: =IFERROR($C43*$E43, "") -> $0.00
A44: 02500-C4-SP030 | B44: 15" RCP Pipe Removal (not included in new installation) | C44: =ROUNDUP(67+21+201,0) -> 289 | D44: LF | F44: =IFERROR($C44*$E44, "") -> $0.00
A45: 02500-C4-SP040 | B45: 27" RCP Pipe Removal (not included in new installation) | C45: 13 | D45: LF | F45: =IFERROR($C45*$E45, "") -> $0.00
E46: SUBTOTAL | F46: =SUBTOTAL(109,Unit_Price_Tab!$F$32:$F$45) -> $0.00
A48: C5 | B48: =VLOOKUP(A48,Table_BidItem_CategoryClassification[#All],2,FALSE) -> GUARDRAIL
A49: MASTER ITEM # | B49: DESCRIPTION | C49: QTY | D49: UNIT | E49: UNIT PRICE | F49: TOTAL
E50: SUBTOTAL | F50: $0.00
A52: C6 | B52: =VLOOKUP(A52,Table_BidItem_CategoryClassification[#All],2,FALSE) -> WATERMAIN WORK
A53: MASTER ITEM # | B53: DESCRIPTION | C53: QTY | D53: UNIT | E53: UNIT PRICE | F53: TOTAL
E54: SUBTOTAL | F54: $0.00
A56: C7 | B56: =VLOOKUP(A56,Table_BidItem_CategoryClassification[#All],2,FALSE) -> SANITARY SEWER WORK
A57: MASTER ITEM # | B57: DESCRIPTION | C57: QTY | D57: UNIT | E57: UNIT PRICE | F57: TOTAL
E58: SUBTOTAL | F58: $0.00
A60: C8 | B60: =VLOOKUP(A60,Table_BidItem_CategoryClassification[#All],2,FALSE) -> TRAFFIC SIGNAL WORK
A61: MASTER ITEM # | B61: DESCRIPTION | C61: QTY | D61: UNIT | E61: UNIT PRICE | F61: TOTAL
A62: 13160-C8-03000 | B62: Traffic Signal Cost | C62: 1 | D62: LS | F62: =IFERROR($C62*$E62, "") -> $0.00
E63: SUBTOTAL | F63: =SUBTOTAL(109,Unit_Price_Tab!$F$62:$F$62) -> $0.00
A65: C9 | B65: =VLOOKUP(A65,Table_BidItem_CategoryClassification[#All],2,FALSE) -> STREET LIGHTING WORK
A66: MASTER ITEM # | B66: DESCRIPTION | C66: QTY | D66: UNIT | E66: UNIT PRICE | F66: TOTAL
A67: 14030-C9-00040 | B67: Furnish and Install 2 Inch Sch 40 PVC Conduit in Trench (Detail 14030-01) | C67: =ROUNDUP(133+176,0) -> 309 | D67: LF | F67: =IFERROR($C67*$E67, "") -> $0.00
A68: 14040-C9-00170 | B68: Furnish and Install Junction Box and Lid SMALL (Detail 14040-01) | C68: 3 | D68: EA | F68: $0.00
A69: 14040-C9-00220 | B69: Enter Existing Junction Box | C69: 2 | D69: EA | F69: $0.00
A70: 14050-C9-00260 | B70: Furnish & Install # 6 TNNH Copper Cable | C70: 309 | D70: LF | F70: $0.00
A71: 14060-C9-00290 | B71: Install Streetlight Pole Foundation (Detail 14060-01) | C71: 3 | D71: EA | F71: $0.00
A72: 14060-C9-00350 | B72: Removal of Existing Foundation - up to 4' Deep | C72: 1 | D72: EA | F72: $0.00
A73: 14160-C9-00910 | B73: Decorative Post-Top Aluminum Streetlight Pole with Single Post-Top Luminaire per Arlington Lighting Standard 14112-01 | C73: 3 | D73: EA | F73: $0.00
E74: SUBTOTAL | F74: =SUBTOTAL(109,Unit_Price_Tab!$F$67:$F$73) -> $0.00
A76: C10 | B76: =VLOOKUP(A76,Table_BidItem_CategoryClassification[#All],2,FALSE) -> PAVEMENT MARKING AND SIGNAGE WORK
A77: MASTER ITEM # | B77: DESCRIPTION | C77: QTY | D77: UNIT | E77: UNIT PRICE | F77: TOTAL
A78: 02900-C10-00030 | B78: Twelve (12) Inch Transverse Markings | C78: =ROUNDUP(64.46,0) -> 65 | D78: LF | F78: =IFERROR($C78*$E78, "") -> $0.00
A79: 02900-C10-00040 | B79: Eighteen (18) Inch Transverse Markings | C79: =ROUNDUP(39.73+10.13+31.54+10.95+22.39+40.35+10.71,-1) -> 170 | D79: LF | F79: $0.00
A80: 02900-C10-00050 | B80: Twenty Four (24) Inch Transverse Markings, Note: Used For Continental (Ladder) Crosswalk | C80: =87*10+10*7 -> 940 | D80: LF | F80: $0.00
A81: 02900-C10-00070 | B81: Four (4) Inch Longitudinal Solid Line | C81: =ROUNDUP(6387.71,-1) -> 6390 | D81: LF | F81: $0.00
A82: 02900-C10-00080 | B82: Four (4) Inch Longitudinal Skip Line (Ten (10) Foot Line/Thirty (30) Foot Spacing), Note: Forty (40) LF Consists of Ten (10) LF of Marking and Thirty (30) LF of Space | C82: =ROUNDUP(255+291+600+600,-1) -> 1750 | D82: LF | F82: $0.00
A83: 02900-C10-00120 | B83: Six (6) Inch Longitudinal Solid Line | C83: =ROUNDUP(92.41+442.97,-1) -> 540 | D83: LF | F83: $0.00
A84: 02900-C10-00160 | B84: Six (6) Inch Longitudinal Skip Line (Two (2) Foot Line/ Four (4) Foot Spacing), Note: Twelve (12) LF Consists of Two (2) LF of Marking and Four (4) LF of Space | C84: =ROUNDUP(78*2+38+38+41+26+57+56+42*2+26*2,-1) -> 550 | D84: LF | F84: $0.00
A85: 02900-C10-00230 | B85: Eight (8) Foot Letters, Note: 'Turn Only' (for example) | C85: 4 | D85: EA | F85: $0.00
A86: 02900-C10-00240 | B86: Single Arrows | C86: 2 | D86: EA | F86: $0.00
A87: 02900-C10-00290 | B87: Standard Bicycle Symbols (MUTCD, Chapter 9C, Figure 9C-3), "Bike Symbol", "Helmeted Bicyclist Symbol" | C87: 6 | D87: EA | F87: $0.00
A88: 02900-C10-00350 | B88: Colorized Bike Lane Coatings (per Supplemental Specification 02901) | C88: =ROUNDUP(235+6*17+4*19+6*14+6*20,0) -> 617 | D88: SF | F88: $0.00
A89: 02900-C10-00410 | B89: Traffic Control Sign (Typical Stop, Yield, No Parking, Speed Limit, or Similar), Install per Detail SG-1.0 | C89: 4 | D89: EA | F89: $0.00
A90: 02900-C10-00430 | B90: Traffic Control Sign (Typical Stop, Yield, No Parking, Speed Limit, or Similar), Relocate with New Post | C90: 9 | D90: EA | F90: $0.00
A91: 02900-C10-00440 | B91: Traffic Control Sign (Typical Stop, Yield, No Parking, Speed Limit, or Similar), Mount Sign to Light or Utility Pole | C91: 1 | D91: EA | F91: $0.00
A92: 02900-C10-00441 | B92: Remove Existing signs | C92: 10 | D92: EA | F92: $0.00
E93: SUBTOTAL | F93: =SUBTOTAL(109,Unit_Price_Tab!$F$78:$F$92) -> $0.00
A95: C11 | B95: =VLOOKUP(A95,Table_BidItem_CategoryClassification[#All],2,FALSE) -> LANDSCAPE AND HARDSCAPE RESTORATION WORK
A96: MASTER ITEM # | B96: DESCRIPTION | C96: QTY | D96: UNIT | E96: UNIT PRICE | F96: TOTAL
A97: 02800-C11-00020 | B97: Topsoil for Street Trees, Backfill Soil Mixture of 3/4 Existing Soil and 1/4 Organic Material (per Arlington County DPR Specification) | C97: =ROUNDUP(14029.96*0.5/27,0) -> 260 | D97: CY | F97: =IFERROR($C97*$E97, "") -> $0.00
A98: 02801-C11-00060 | B98: Sod, Tall Fescue/Bluegrass Mixture | C98: =ROUNDUP(14029.96/9,0) -> 1559 | D98: SY | F98: $0.00
A99: 02800-C11-00500 | B99: Tree/Stump Removal - Class A. Remove and Dispose, Up to 6" DBH to 12" DBH (Diameter at Breast Height) | C99: 4 | D99: EA | F99: $0.00
A100: 02800-C11-00602 | B100: Trees, Deciduous - 1.5 to 2.0" caliper | C100: 9 | D100: EA | F100: $0.00
A101: 02800-C11-00100 | B101: Brick Pavers, Including Concrete Base (Arlington County Detail R-2.1) | C101: =ROUNDUP(68.48/9,0) -> 8 | D101: SY | F101: $0.00
E102: SUBTOTAL | F102: =SUBTOTAL(109,Unit_Price_Tab!$F$97:$F$101) -> $0.00
A104: C12 | B104: =VLOOKUP(A104,Table_BidItem_CategoryClassification[#All],2,FALSE) -> BUS STOP SHELTER AND FURNISHINGS
A105: MASTER ITEM # | B105: DESCRIPTION | C105: QTY | D105: UNIT | E105: UNIT PRICE | F105: TOTAL
E106: SUBTOTAL | F106: $0.00
A108: C13 | B108: =VLOOKUP(A108,Table_BidItem_CategoryClassification[#All],2,FALSE) -> EROSION AND SEDIMENT CONTROL WORK
A109: MASTER ITEM # | B109: DESCRIPTION | C109: QTY | D109: UNIT | E109: UNIT PRICE | F109: TOTAL
E110: SUBTOTAL | F110: $0.00
A112: C15 | B112: =VLOOKUP(A112,Table_BidItem_CategoryClassification[#All],2,FALSE) -> UNLISTED WORK
A113: MASTER ITEM # | B113: DESCRIPTION | C113: QTY | D113: UNIT | E113: UNIT PRICE | F113: TOTAL
E114: SUBTOTAL | F114: $0.00
A116: C16 | B116: =VLOOKUP(A116,Table_BidItem_CategoryClassification[#All],2,FALSE) -> MOT AND RE-MOBILIZATION WORK
A117: MASTER ITEM # | B117: DESCRIPTION | C117: QTY | D117: UNIT | E117: UNIT PRICE | F117: TOTAL
E118: SUBTOTAL | F118: $0.00
A120: C17 | B120: =VLOOKUP(A120,Table_BidItem_CategoryClassification[#All],2,FALSE) -> STORMWATER WORK
A121: MASTER ITEM # | B121: DESCRIPTION | C121: QTY | D121: UNIT | E121: UNIT PRICE | F121: TOTAL
E122: SUBTOTAL | F122: $0.00
A124: C18 | B124: =VLOOKUP(A124,Table_BidItem_CategoryClassification[#All],2,FALSE) -> NON COUNTY UTILITIES
A125: MASTER ITEM # | B125: DESCRIPTION | C125: QTY | D125: UNIT | E125: UNIT PRICE | F125: TOTAL
E126: SUBTOTAL | F126: $0.00
E129: CONTRACT TOTAL (EXCLUDING PERCENTAGE ITEMS) | F129: =SUMIF(E:E,"SUBTOTAL",F:F) -> $0.00
A131: PCT | B131: =VLOOKUP(A131,Table_BidItem_CategoryClassification[#All],2,FALSE) -> PERCENTAGE LINE ITEMS
A132: MASTER ITEM # | B132: DESCRIPTION | C132: QTY | D132: UNIT | E132: UNIT PRICE | F132: TOTAL
A133: 01500-C13-10000 | B133: Temporary Erosion and Sediment Controls | C133: 1 | D133: LS | F133: =IFERROR($C133*$E133, "") -> $0.00
A134: 01000-C16-00010 | B134: Maintenance of Traffic (MOT) | C134: 1 | D134: LS | F134: =IFERROR($C134*$E134, "") -> $0.00
A135: 01000-C16-00030 | B135: Mobilization and De-Mobilization | C135: 1 | D135: LS | F135: =IFERROR($C135*$E135, "") -> $0.00
A136: 01500-SA-00200 | B136: SWPPP Administration | C136: 1 | D136: LS | F136: =IFERROR($C136*$E136, "") -> $0.00
E137: PERCENTAGE LINE ITEMS SUBTOTAL | F137: =SUBTOTAL(109,Unit_Price_Tab!$F$133:$F$136) -> $0.00
E141: PROJECT TOTAL: | F141: =$F$137+F129 -> $0.00

Sheet SP_Info_Biditem_Category (hidden)
A1: CategoryNum | B1: Category_Title | C1: Item Type | D1: Path | E1: CategorySort
A2: C1 | B2: GENERAL EARTH WORK | C2: Item | D2: sites/extranet/EngineeringBureau/Lists/Info_BidItems_CategoryClassification | E2: 1
A3: C2 | B3: CONCRETE WORK | C3: Item | D3: sites/extranet/EngineeringBureau/Lists/Info_BidItems_CategoryClassification | E3: 2
A4: C3 | B4: ASPHALT WORK | C4: Item | D4: sites/extranet/EngineeringBureau/Lists/Info_BidItems_CategoryClassification | E4: 3
A5: C4 | B5: STORM SEWER UTILITY WORK | C5: Item | D5: sites/extranet/EngineeringBureau/Lists/Info_BidItems_CategoryClassification | E5: 4
A6: C5 | B6: GUARDRAIL | C6: Item | D6: sites/extranet/EngineeringBureau/Lists/Info_BidItems_CategoryClassification | E6: 5
A7: C6 | B7: WATERMAIN WORK | C7: Item | D7: sites/extranet/EngineeringBureau/Lists/Info_BidItems_CategoryClassification | E7: 6
A8: C7 | B8: SANITARY SEWER WORK | C8: Item | D8: sites/extranet/EngineeringBureau/Lists/Info_BidItems_CategoryClassification | E8: 7
A9: C8 | B9: TRAFFIC SIGNAL WORK | C9: Item | D9: sites/extranet/EngineeringBureau/Lists/Info_BidItems_CategoryClassification | E9: 8
A10: C9 | B10: STREET LIGHTING WORK | C10: Item | D10: sites/extranet/EngineeringBureau/Lists/Info_BidItems_CategoryClassification | E10: 9
A11: C10 | B11: PAVEMENT MARKING AND SIGNAGE WORK | C11: Item | D11: sites/extranet/EngineeringBureau/Lists/Info_BidItems_CategoryClassification | E11: 10
A12: C11 | B12: LANDSCAPE AND HARDSCAPE RESTORATION WORK | C12: Item | D12: sites/extranet/EngineeringBureau/Lists/Info_BidItems_CategoryClassification | E12: 11
A13: C12 | B13: BUS STOP SHELTER AND FURNISHINGS | C13: Item | D13: sites/extranet/EngineeringBureau/Lists/Info_BidItems_CategoryClassification | E13: 12
A14: C13 | B14: EROSION AND SEDIMENT CONTROL WORK | C14: Item | D14: sites/extranet/EngineeringBureau/Lists/Info_BidItems_CategoryClassification | E14: 13
A15: C14 | B15: MATERIAL TESTING WORK | C15: Item | D15: sites/extranet/EngineeringBureau/Lists/Info_BidItems_CategoryClassification | E15: 14
A16: C15 | B16: UNLISTED WORK | C16: Item | D16: sites/extranet/EngineeringBureau/Lists/Info_BidItems_CategoryClassification | E16: 15
A17: C16 | B17: MOT AND RE-MOBILIZATION WORK | C17: Item | D17: sites/extranet/EngineeringBureau/Lists/Info_BidItems_CategoryClassification | E17: 16
A18: M1 | B18: MAINTENANCE WORK | C18: Item | D18: sites/extranet/EngineeringBureau/Lists/Info_BidItems_CategoryClassification | E18: 101
A19: M2 | B19: MOT WORK | C19: Item | D19: sites/extranet/EngineeringBureau/Lists/Info_BidItems_CategoryClassification | E19: 102
A20: C17 | B20: STORMWATER WORK | C20: Item | D20: sites/extranet/EngineeringBureau/Lists/Info_BidItems_CategoryClassification | E20: 17
A21: RM | B21: REMOVED ITEM | C21: Item | D21: sites/extranet/EngineeringBureau/Lists/Info_BidItems_CategoryClassification | E21: 1001
A22: C18 | B22: NON COUNTY UTILITIES | C22: Item | D22: sites/extranet/EngineeringBureau/Lists/Info_BidItems_CategoryClassification | E22: 18
A23: PCT | B23: PERCENTAGE LINE ITEMS | C23: Item | D23: sites/extranet/EngineeringBureau/Lists/Info_BidItems_CategoryClassification | E23: 500
A24: VF | B24: VDOT FEE | C24: Item | D24: sites/extranet/EngineeringBureau/Lists/Info_BidItems_CategoryClassification | E24: 600
